[Event "Late-Titled-Tuesday-Blitz-May-28-2024"]
[Site "Chess.com"]
[Date "2024.05.28"]
[Round "9"]
[White "Slovak_fighter2000"]
[Black "nocnypako"]
[Result "1/2-1/2"]
[WhiteElo "2568"]
[BlackElo "2693"]
[TimeControl "180+1"]
[EndTime "15:45:35 PDT"]
[Termination "Game drawn by repetition"]

1. d4 {[%clk 0:02:51.8]} 1... Nf6 {[%clk 0:02:59.8]} 2. Nf3 {[%clk 0:02:50.3]}
2... g6 {[%clk 0:02:59.9]} 3. c4 {[%clk 0:02:50.5]} 3... Bg7 {[%clk 0:03:00.1]}
4. Nc3 {[%clk 0:02:51.2]} 4... d5 {[%clk 0:03:00.3]} 5. Bg5 {[%clk 0:02:48.9]}
5... Ne4 {[%clk 0:02:59.9]} 6. cxd5 {[%clk 0:02:48.9]} 6... Nxg5 {[%clk
0:02:59.8]} 7. Nxg5 {[%clk 0:02:49.8]} 7... e6 {[%clk 0:02:54]} 8. Qd2 {[%clk
0:02:49.2]} 8... h6 {[%clk 0:02:51.9]} 9. Nh3 {[%clk 0:02:47.6]} 9... exd5
{[%clk 0:02:50.5]} 10. Nf4 {[%clk 0:02:47.9]} 10... c6 {[%clk 0:02:49.4]} 11. e3
{[%clk 0:02:48.4]} 11... O-O {[%clk 0:02:48.6]} 12. Bd3 {[%clk 0:02:47]} 12...
Nd7 {[%clk 0:02:48.7]} 13. O-O {[%clk 0:02:46.8]} 13... Nf6 {[%clk 0:02:47.1]}
14. b4 {[%clk 0:02:43.2]} 14... Qd6 {[%clk 0:02:44.2]} 15. a3 {[%clk 0:02:40]}
15... Bd7 {[%clk 0:02:43.5]} 16. Rab1 {[%clk 0:02:33.7]} 16... a5 {[%clk
0:02:41.7]} 17. Na4 {[%clk 0:02:25]} 17... axb4 {[%clk 0:02:39.6]} 18. Qxb4
{[%clk 0:02:21.3]} 18... Qxb4 {[%clk 0:02:28.1]} 19. Rxb4 {[%clk 0:02:22.2]}
19... b5 {[%clk 0:02:27.7]} 20. Nc5 {[%clk 0:02:10.4]} 20... Rxa3 {[%clk
0:02:27.3]} 21. Rb3 {[%clk 0:02:07.7]} 21... Rfa8 {[%clk 0:02:23.9]} 22. Rfb1
{[%clk 0:02:00.2]} 22... Bf8 {[%clk 0:02:20.8]} 23. Nxd7 {[%clk 0:01:49.1]}
23... Nxd7 {[%clk 0:02:21.7]} 24. g3 {[%clk 0:01:44.8]} 24... Nb6 {[%clk
0:02:15.7]} 25. Bc2 {[%clk 0:01:31.1]} 25... Nc4 {[%clk 0:02:12.9]} 26. Rxa3
{[%clk 0:01:29.1]} 26... Rxa3 {[%clk 0:02:10.6]} 27. Nd3 {[%clk 0:01:16.9]}
27... Rc3 {[%clk 0:02:10.1]} 28. Ne1 {[%clk 0:01:13.1]} 28... Na3 {[%clk
0:02:05.3]} 29. Rb2 {[%clk 0:01:06.9]} 29... Nxc2 {[%clk 0:01:48.2]} 30. Nxc2
{[%clk 0:01:01.2]} 30... Ba3 {[%clk 0:01:47.7]} 31. Nxa3 {[%clk 0:00:55.8]}
31... Rxa3 {[%clk 0:01:48.6]} 32. Rc2 {[%clk 0:00:54.9]} 32... Ra6 {[%clk
0:01:48.7]} 33. Kf1 {[%clk 0:00:49.9]} 33... Kf8 {[%clk 0:01:48.8]} 34. Ke2
{[%clk 0:00:49.7]} 34... Ke7 {[%clk 0:01:49]} 35. Kd3 {[%clk 0:00:47.7]} 35...
Kd6 {[%clk 0:01:49]} 36. Rb2 {[%clk 0:00:44.6]} 36... Ra3+ {[%clk 0:01:47.9]}
37. Kd2 {[%clk 0:00:40.7]} 37... Kc7 {[%clk 0:01:47.9]} 38. h4 {[%clk
0:00:36.4]} 38... h5 {[%clk 0:01:46.5]} 39. Kc2 {[%clk 0:00:33.6]} 39... Kb6
{[%clk 0:01:45.7]} 40. Kb1 {[%clk 0:00:30.2]} 40... Ra4 {[%clk 0:01:37.2]} 41.
Re2 {[%clk 0:00:29.4]} 41... f5 {[%clk 0:01:33.9]} 42. Kb2 {[%clk 0:00:28.4]}
42... Ra8 {[%clk 0:01:27.9]} 43. Rc2 {[%clk 0:00:23.8]} 43... Ra4 {[%clk
0:01:20.2]} 44. Rc1 {[%clk 0:00:23.3]} 44... Kb7 {[%clk 0:01:12.4]} 45. Kb3
{[%clk 0:00:23.5]} 45... Kb6 {[%clk 0:00:53.5]} 46. Kb2 {[%clk 0:00:23.2]} 46...
Rc4 {[%clk 0:00:41.4]} 47. Ra1 {[%clk 0:00:23.1]} 47... Kb7 {[%clk 0:00:41.6]}
48. Kb3 {[%clk 0:00:22.5]} 48... c5 {[%clk 0:00:34.7]} 49. dxc5 {[%clk
0:00:22.3]} 49... Rxc5 {[%clk 0:00:35.6]} 50. Rd1 {[%clk 0:00:20.2]} 50... Kb6
{[%clk 0:00:31.9]} 51. Ra1 {[%clk 0:00:19.1]} 51... Rc8 {[%clk 0:00:31.4]} 52.
Rd1 {[%clk 0:00:18.4]} 52... Rd8 {[%clk 0:00:20.1]} 53. Kb4 {[%clk 0:00:18.2]}
53... Rd7 {[%clk 0:00:18.1]} 54. Rd2 {[%clk 0:00:17.6]} 54... Rd6 {[%clk
0:00:16]} 55. Rd1 {[%clk 0:00:17.7]} 55... Rd8 {[%clk 0:00:13.4]} 56. Rd2 {[%clk
0:00:17.5]} 56... Kc6 {[%clk 0:00:11]} 57. Rc2+ {[%clk 0:00:17.2]} 57... Kd6
{[%clk 0:00:11.4]} 58. Ra2 {[%clk 0:00:15.2]} 58... Ke5 {[%clk 0:00:10.3]} 59.
Kxb5 {[%clk 0:00:13.6]} 59... Ke4 {[%clk 0:00:09.1]} 60. Kc5 {[%clk 0:00:11]}
60... Kf3 {[%clk 0:00:07.5]} 61. Kd4 {[%clk 0:00:09]} 61... Rc8 {[%clk 0:00:05]}
62. Ke5 {[%clk 0:00:08.3]} 62... Rc6 {[%clk 0:00:04]} 63. Kxd5 {[%clk
0:00:05.6]} 63... Rb6 {[%clk 0:00:04]} 64. Ke5 {[%clk 0:00:05.4]} 64... Rc6
{[%clk 0:00:04.2]} 65. Kd5 {[%clk 0:00:05.6]} 65... Rb6 {[%clk 0:00:04.4]} 66.
Ke5 {[%clk 0:00:05.8]} 66... Rc6 {[%clk 0:00:04.3]} 67. Kd5 {[%clk 0:00:06.2]}
1/2-1/2

[Event "Late-Titled-Tuesday-Blitz-May-28-2024"]
[Site "Chess.com"]
[Date "2024.05.28"]
[Round "9"]
[White "Lavandum24"]
[Black "protectiago"]
[Result "0-1"]
[WhiteElo "1729"]
[BlackElo "2116"]
[TimeControl "180+1"]
[EndTime "15:45:36 PDT"]
[Termination "protectiago won by checkmate"]

1. d4 {[%clk 0:03:00.9]} 1... Nf6 {[%clk 0:02:54.2]} 2. c4 {[%clk 0:03:00.5]}
2... g6 {[%clk 0:02:53.3]} 3. Nc3 {[%clk 0:02:59.6]} 3... d5 {[%clk 0:02:53.7]}
4. Bg5 {[%clk 0:02:57.3]} 4... Bg7 {[%clk 0:02:50.8]} 5. Bxf6 {[%clk 0:02:55.8]}
5... Bxf6 {[%clk 0:02:51]} 6. cxd5 {[%clk 0:02:55.6]} 6... c5 {[%clk 0:02:49.3]}
7. Nf3 {[%clk 0:02:50.6]} 7... cxd4 {[%clk 0:02:45.8]} 8. Nxd4 {[%clk
0:02:50.1]} 8... O-O {[%clk 0:02:45.2]} 9. e4 {[%clk 0:02:48.8]} 9... Qb6 {[%clk
0:02:43.8]} 10. Nb3 {[%clk 0:02:48.3]} 10... e6 {[%clk 0:02:40]} 11. Be2 {[%clk
0:02:34]} 11... Rd8 {[%clk 0:02:39.6]} 12. Rb1 {[%clk 0:02:21.3]} 12... Qb4
{[%clk 0:02:20.1]} 13. O-O {[%clk 0:02:14.4]} 13... Bxc3 {[%clk 0:02:15.9]} 14.
bxc3 {[%clk 0:02:14.5]} 14... Qxc3 {[%clk 0:01:58.3]} 15. Rc1 {[%clk 0:02:14.6]}
15... Qe5 {[%clk 0:01:56.1]} 16. Qd3 {[%clk 0:01:39.6]} 16... Nc6 {[%clk
0:01:49.9]} 17. f4 {[%clk 0:01:35.4]} 17... Qc7 {[%clk 0:01:15.4]} 18. Qf3
{[%clk 0:01:25.4]} 18... exd5 {[%clk 0:01:07.7]} 19. exd5 {[%clk 0:01:24.5]}
19... Qb6+ {[%clk 0:01:07.7]} 20. Kh1 {[%clk 0:01:22.5]} 20... Ne7 {[%clk
0:00:49.3]} 21. Rfd1 {[%clk 0:01:17.8]} 21... h5 {[%clk 0:00:41]} 22. h3 {[%clk
0:01:10.1]} 22... Nf5 {[%clk 0:00:38.8]} 23. Nc5 {[%clk 0:01:01.4]} 23... h4
{[%clk 0:00:36.1]} 24. Ne4 {[%clk 0:00:57]} 24... Re8 {[%clk 0:00:32.1]} 25. Bb5
{[%clk 0:00:43.2]} 25... Rxe4 {[%clk 0:00:30.7]} 26. Rb1 {[%clk 0:00:23.5]}
26... Qe3 {[%clk 0:00:28.7]} 27. Qxe3 {[%clk 0:00:21.5]} 27... Rxe3 {[%clk
0:00:26.1]} 28. d6 {[%clk 0:00:21.6]} 28... Ng3+ {[%clk 0:00:15.1]} 29. Kh2
{[%clk 0:00:21]} 29... Bf5 {[%clk 0:00:14.7]} 30. d7 {[%clk 0:00:20]} 30... Rd8
{[%clk 0:00:14.9]} 31. Rbc1 {[%clk 0:00:20.2]} 31... a6 {[%clk 0:00:12.6]} 32.
Rc8 {[%clk 0:00:18]} 32... Rxc8 {[%clk 0:00:08.9]} 33. d8=Q+ {[%clk 0:00:17.4]}
33... Rxd8 {[%clk 0:00:07.9]} 34. Rxd8+ {[%clk 0:00:17.3]} 34... Kg7 {[%clk
0:00:07.9]} 35. Ba4 {[%clk 0:00:15.7]} 35... Re1 {[%clk 0:00:07.8]} 36. Rd1
{[%clk 0:00:13.2]} 36... Rxd1 {[%clk 0:00:06.5]} 37. Bxd1 {[%clk 0:00:12.7]}
37... b5 {[%clk 0:00:05.8]} 38. Bf3 {[%clk 0:00:12.5]} 38... b4 {[%clk
0:00:04.8]} 39. Bb7 {[%clk 0:00:11.2]} 39... a5 {[%clk 0:00:04.8]} 40. Bd5
{[%clk 0:00:11.1]} 40... Be6 {[%clk 0:00:04.1]} 41. Bb3 {[%clk 0:00:10.6]} 41...
Bxb3 {[%clk 0:00:04.1]} 42. axb3 {[%clk 0:00:11]} 42... Kf6 {[%clk 0:00:04.7]}
43. Kg1 {[%clk 0:00:10.3]} 43... Kf5 {[%clk 0:00:05.3]} 44. Kf2 {[%clk
0:00:10.8]} 44... Kxf4 {[%clk 0:00:06.2]} 45. Ke1 {[%clk 0:00:10.3]} 45... Ke4
{[%clk 0:00:06.9]} 46. Kd2 {[%clk 0:00:10.2]} 46... Kd4 {[%clk 0:00:07.5]} 47.
Kc2 {[%clk 0:00:10.3]} 47... f5 {[%clk 0:00:08]} 48. Kd2 {[%clk 0:00:10.4]}
48... g5 {[%clk 0:00:08.6]} 49. Kc2 {[%clk 0:00:10.4]} 49... g4 {[%clk
0:00:08.4]} 50. Kd2 {[%clk 0:00:10.6]} 50... gxh3 {[%clk 0:00:08.5]} 51. gxh3
{[%clk 0:00:11.1]} 51... f4 {[%clk 0:00:09]} 52. Ke1 {[%clk 0:00:11]} 52... Kc3
{[%clk 0:00:07.9]} 53. Kf2 {[%clk 0:00:11]} 53... Kxb3 {[%clk 0:00:07.6]} 54.
Kf3 {[%clk 0:00:11.4]} 54... a4 {[%clk 0:00:08.3]} 55. Kxf4 {[%clk 0:00:11.9]}
55... a3 {[%clk 0:00:09.2]} 56. Kg4 {[%clk 0:00:12.3]} 56... a2 {[%clk
0:00:10.1]} 57. Kxh4 {[%clk 0:00:12.9]} 57... Ne4 {[%clk 0:00:09.7]} 58. Kg4
{[%clk 0:00:12.8]} 58... a1=Q {[%clk 0:00:10.6]} 59. h4 {[%clk 0:00:13.2]} 59...
Qh1 {[%clk 0:00:10.7]} 60. h5 {[%clk 0:00:13.1]} 60... Qxh5+ {[%clk 0:00:10.4]}
61. Kxh5 {[%clk 0:00:13.1]} 61... Kc4 {[%clk 0:00:10.6]} 62. Kg4 {[%clk
0:00:13.3]} 62... Nc3 {[%clk 0:00:11.1]} 63. Kf3 {[%clk 0:00:13.4]} 63... b3
{[%clk 0:00:12]} 64. Ke3 {[%clk 0:00:13.6]} 64... b2 {[%clk 0:00:12.9]} 65. Kd2
{[%clk 0:00:13.6]} 65... b1=Q {[%clk 0:00:12.5]} 66. Ke3 {[%clk 0:00:13.8]}
66... Qd3+ {[%clk 0:00:12.2]} 67. Kf2 {[%clk 0:00:13.5]} 67... Qe2+ {[%clk
0:00:12.2]} 68. Kg1 {[%clk 0:00:13.3]} 68... Kd4 {[%clk 0:00:11]} 69. Kh1 {[%clk
0:00:13.5]} 69... Ke3 {[%clk 0:00:10.7]} 70. Kg1 {[%clk 0:00:13.8]} 70... Kf3
{[%clk 0:00:10.5]} 71. Kh1 {[%clk 0:00:13.6]} 71... Qg2# {[%clk 0:00:11]} 0-1

[Event "Late-Titled-Tuesday-Blitz-May-28-2024"]
[Site "Chess.com"]
[Date "2024.05.28"]
[Round "9"]
[White "KNVB"]
[Black "AryanTari"]
[Result "1-0"]
[WhiteElo "2790"]
[BlackElo "3007"]
[TimeControl "180+1"]
[EndTime "15:45:38 PDT"]
[Termination "KNVB won on time"]

1. e4 {[%clk 0:02:54.7]} 1... e5 {[%clk 0:02:51.4]} 2. Nf3 {[%clk 0:02:53.7]}
2... Nc6 {[%clk 0:02:51.6]} 3. Nc3 {[%clk 0:02:53.9]} 3... Nf6 {[%clk
0:02:48.7]} 4. Nd5 {[%clk 0:02:53.9]} 4... Be7 {[%clk 0:02:44.3]} 5. d4 {[%clk
0:02:17.6]} 5... exd4 {[%clk 0:02:27.8]} 6. Bc4 {[%clk 0:02:11.2]} 6... O-O
{[%clk 0:02:23.6]} 7. O-O {[%clk 0:02:05.9]} 7... d6 {[%clk 0:02:23]} 8. Nxd4
{[%clk 0:02:03.9]} 8... Nxd5 {[%clk 0:02:11.1]} 9. Bxd5 {[%clk 0:02:01.8]} 9...
Nxd4 {[%clk 0:02:11]} 10. Qxd4 {[%clk 0:02:02.7]} 10... Bf6 {[%clk 0:02:10.1]}
11. Qd3 {[%clk 0:02:02.7]} 11... c6 {[%clk 0:02:08.3]} 12. Bb3 {[%clk
0:02:02.1]} 12... a5 {[%clk 0:01:55]} 13. a4 {[%clk 0:01:55]} 13... Be6 {[%clk
0:01:53.5]} 14. Bf4 {[%clk 0:01:12.4]} 14... Bxb3 {[%clk 0:01:14.4]} 15. Qxb3
{[%clk 0:00:45.7]} 15... Qe7 {[%clk 0:01:14.5]} 16. Rad1 {[%clk 0:00:36.1]}
16... Rfd8 {[%clk 0:01:03.9]} 17. Rfe1 {[%clk 0:00:32.4]} 17... Rd7 {[%clk
0:01:03.7]} 18. g3 {[%clk 0:00:14.7]} 18... h5 {[%clk 0:01:01.5]} 19. h4 {[%clk
0:00:09.8]} 19... Be5 {[%clk 0:00:56.6]} 20. Bg5 {[%clk 0:00:08.1]} 20... Bf6
{[%clk 0:00:49.8]} 21. Bxf6 {[%clk 0:00:05.2]} 21... Qxf6 {[%clk 0:00:49.7]} 22.
e5 {[%clk 0:00:05.6]} 22... Qd8 {[%clk 0:00:34.8]} 23. e6 {[%clk 0:00:05]} 23...
Re7 {[%clk 0:00:26.7]} 24. exf7+ {[%clk 0:00:04.3]} 24... Rxf7 {[%clk
0:00:27.6]} 25. Qe6 {[%clk 0:00:03.1]} 25... d5 {[%clk 0:00:25.6]} 26. c4 {[%clk
0:00:03.7]} 26... Qb6 {[%clk 0:00:25.2]} 27. Re2 {[%clk 0:00:03.1]} 27... Qb3
{[%clk 0:00:20.6]} 28. Rc1 {[%clk 0:00:02]} 28... dxc4 {[%clk 0:00:14.7]} 29.
Rc3 {[%clk 0:00:01.8]} 29... Qd1+ {[%clk 0:00:14.2]} 30. Kg2 {[%clk 0:00:01.8]}
30... Qd5+ {[%clk 0:00:14.1]} 31. Qxd5 {[%clk 0:00:02.3]} 31... cxd5 {[%clk
0:00:14.4]} 32. Re5 {[%clk 0:00:03.2]} 32... Rd7 {[%clk 0:00:11.1]} 33. b3
{[%clk 0:00:03.5]} 33... Rc8 {[%clk 0:00:04.3]} 34. bxc4 {[%clk 0:00:01.6]}
34... d4 {[%clk 0:00:05]} 35. Rd3 {[%clk 0:00:01.9]} 35... Rxc4 {[%clk
0:00:04.4]} 36. Rxa5 {[%clk 0:00:02.3]} 36... g6 {[%clk 0:00:04.8]} 37. Kf3
{[%clk 0:00:02.1]} 37... Kf7 {[%clk 0:00:02]} 38. Ke4 {[%clk 0:00:02.3]} 38...
Rc2 {[%clk 0:00:02.5]} 39. f4 {[%clk 0:00:02.4]} 39... Re2+ {[%clk 0:00:02.6]}
40. Kf3 {[%clk 0:00:02.8]} 40... Rb2 {[%clk 0:00:03.2]} 41. Re5 {[%clk
0:00:02.5]} 41... Ra2 {[%clk 0:00:03]} 42. a5 {[%clk 0:00:02.9]} 42... Kf6
{[%clk 0:00:03]} 43. Rg5 {[%clk 0:00:02.3]} 43... Rb2 {[%clk 0:00:03]} 44. Rc5
{[%clk 0:00:02.2]} 44... Ra2 {[%clk 0:00:03.2]} 45. Re5 {[%clk 0:00:02.3]} 45...
Rb2 {[%clk 0:00:03.6]} 46. Rg5 {[%clk 0:00:02.3]} 46... Rc2 {[%clk 0:00:04]} 47.
Rb5 {[%clk 0:00:02.5]} 47... Rc3 {[%clk 0:00:03.6]} 48. Rb6+ {[%clk 0:00:02.6]}
48... Kf5 {[%clk 0:00:03.4]} 49. Rb5+ {[%clk 0:00:02.8]} 49... Kf6 {[%clk
0:00:04.1]} 50. Rxc3 {[%clk 0:00:03]} 50... dxc3 {[%clk 0:00:05]} 51. Rc5 {[%clk
0:00:03.6]} 51... Rd3+ {[%clk 0:00:05.6]} 52. Ke4 {[%clk 0:00:03]} 52... Rxg3
{[%clk 0:00:05.5]} 53. Rc7 {[%clk 0:00:03]} 53... Rg1 {[%clk 0:00:02.4]} 54.
Rxc3 {[%clk 0:00:02.1]} 54... Ra1 {[%clk 0:00:02.7]} 55. Rc5 {[%clk 0:00:01.9]}
55... Ra3 {[%clk 0:00:02.7]} 56. Rb5 {[%clk 0:00:02]} 56... Ke6 {[%clk
0:00:02.7]} 57. Rb6+ {[%clk 0:00:02.3]} 57... Kf7 {[%clk 0:00:03.1]} 58. Rxb7+
{[%clk 0:00:03.2]} 58... Kf6 {[%clk 0:00:03.8]} 59. Rb6+ {[%clk 0:00:03.5]}
59... Kg7 {[%clk 0:00:02.9]} 60. a6 {[%clk 0:00:04]} 60... Kh7 {[%clk
0:00:03.2]} 61. Rb7+ {[%clk 0:00:03]} 61... Kh6 {[%clk 0:00:03.3]} 62. a7 {[%clk
0:00:03.7]} 62... Ra1 {[%clk 0:00:03.5]} 63. Kd5 {[%clk 0:00:03.3]} 63... Ra4
{[%clk 0:00:01.8]} 64. Kc6 {[%clk 0:00:03.6]} 64... g5 {[%clk 0:00:02.1]} 65.
fxg5+ {[%clk 0:00:03.8]} 65... Kg6 {[%clk 0:00:02.8]} 66. Kc7 {[%clk 0:00:03.7]}
66... Ra1 {[%clk 0:00:01.5]} 67. Kb8 {[%clk 0:00:04.1]} 1-0

[Event "Late-Titled-Tuesday-Blitz-May-28-2024"]
[Site "Chess.com"]
[Date "2024.05.28"]
[Round "9"]
[White "JonasGallasch"]
[Black "Tibmat"]
[Result "1-0"]
[WhiteElo "2497"]
[BlackElo "2669"]
[TimeControl "180+1"]
[EndTime "15:45:51 PDT"]
[Termination "JonasGallasch won by resignation"]

1. e4 {[%clk 0:03:00.9]} 1... d6 {[%clk 0:02:59.9]} 2. Nf3 {[%clk 0:02:58.3]}
2... Nf6 {[%clk 0:02:59.9]} 3. Nc3 {[%clk 0:02:55.4]} 3... e5 {[%clk 0:03:00.3]}
4. Bc4 {[%clk 0:02:54.7]} 4... Be7 {[%clk 0:02:59.9]} 5. h3 {[%clk 0:02:54]}
5... O-O {[%clk 0:03:00.1]} 6. O-O {[%clk 0:02:54.2]} 6... c6 {[%clk 0:03:00.3]}
7. d3 {[%clk 0:02:54]} 7... b5 {[%clk 0:02:54.9]} 8. Bb3 {[%clk 0:02:53.3]} 8...
Nbd7 {[%clk 0:02:55.5]} 9. Be3 {[%clk 0:02:49.9]} 9... Qc7 {[%clk 0:02:51.9]}
10. a4 {[%clk 0:02:47.2]} 10... b4 {[%clk 0:02:46.4]} 11. Nb1 {[%clk 0:02:43.8]}
11... Nc5 {[%clk 0:02:35.7]} 12. Bxc5 {[%clk 0:02:43.1]} 12... dxc5 {[%clk
0:02:36.6]} 13. Nbd2 {[%clk 0:02:43.4]} 13... Kh8 {[%clk 0:02:20.5]} 14. Nc4
{[%clk 0:02:39.8]} 14... Nd7 {[%clk 0:02:20.7]} 15. Nh2 {[%clk 0:02:32]} 15...
Rd8 {[%clk 0:02:16.8]} 16. Ng4 {[%clk 0:02:31.1]} 16... f6 {[%clk 0:02:15.5]}
17. Nge3 {[%clk 0:02:30.8]} 17... Nf8 {[%clk 0:02:15.3]} 18. Nf5 {[%clk
0:02:23.8]} 18... Ne6 {[%clk 0:02:13]} 19. Nce3 {[%clk 0:02:19.5]} 19... Bf8
{[%clk 0:02:12.5]} 20. Bc4 {[%clk 0:02:07.8]} 20... g6 {[%clk 0:02:11.1]} 21.
Ng3 {[%clk 0:02:04.6]} 21... a5 {[%clk 0:02:09.2]} 22. Ne2 {[%clk 0:02:03.6]}
22... Bh6 {[%clk 0:02:06.5]} 23. Ng4 {[%clk 0:02:02.1]} 23... Bg7 {[%clk
0:02:02.5]} 24. Qd2 {[%clk 0:01:58.4]} 24... h5 {[%clk 0:02:00.3]} 25. Nh2
{[%clk 0:01:58.6]} 25... Kh7 {[%clk 0:01:59.6]} 26. f4 {[%clk 0:01:49.2]} 26...
Bh6 {[%clk 0:01:55.5]} 27. g3 {[%clk 0:01:35.6]} 27... h4 {[%clk 0:01:39.8]} 28.
Ng4 {[%clk 0:01:28.1]} 28... exf4 {[%clk 0:01:11.3]} 29. Nxf6+ {[%clk 0:01:16]}
29... Kg7 {[%clk 0:01:11.3]} 30. Ng4 {[%clk 0:01:14]} 30... Nd4 {[%clk
0:00:32.9]} 31. Nxh6 {[%clk 0:01:07.3]} 31... Nxe2+ {[%clk 0:00:31.3]} 32. Qxe2
{[%clk 0:01:07.5]} 32... Kxh6 {[%clk 0:00:32]} 33. Rxf4 {[%clk 0:01:06.7]} 33...
Qe5 {[%clk 0:00:16.1]} 34. Rxh4+ {[%clk 0:00:56.7]} 34... Kg7 {[%clk 0:00:15.9]}
35. Qe3 {[%clk 0:00:56.7]} 35... g5 {[%clk 0:00:10.9]} 36. Rh5 {[%clk
0:00:55.2]} 36... Kg6 {[%clk 0:00:11.4]} 37. g4 {[%clk 0:00:50]} 37... Bd7
{[%clk 0:00:11.7]} 38. Rf1 {[%clk 0:00:49]} 38... Rf8 {[%clk 0:00:11.4]} 39. Rf5
{[%clk 0:00:45.1]} 39... Qd4 {[%clk 0:00:04.5]} 40. Rhxg5+ {[%clk 0:00:33.8]}
40... Kh6 {[%clk 0:00:04.6]} 41. Rh5+ {[%clk 0:00:25]} 41... Kg6 {[%clk
0:00:04.8]} 42. Qxd4 {[%clk 0:00:15]} 42... cxd4 {[%clk 0:00:05.7]} 43. Rfg5+
{[%clk 0:00:12.5]} 43... Kf6 {[%clk 0:00:06.3]} 44. Rc5 {[%clk 0:00:12.6]} 44...
Ke7 {[%clk 0:00:04.9]} 45. Rxa5 {[%clk 0:00:12.5]} 45... Rxa5 {[%clk 0:00:04.4]}
46. Rxa5 {[%clk 0:00:13.4]} 46... Rf3 {[%clk 0:00:04.5]} 47. Kg2 {[%clk
0:00:12.8]} 47... Re3 {[%clk 0:00:04.9]} 48. Kf2 {[%clk 0:00:10.1]} 48... Rxh3
{[%clk 0:00:04.8]} 49. Bb3 {[%clk 0:00:09.2]} 49... Bxg4 {[%clk 0:00:03.9]} 50.
Rg5 {[%clk 0:00:09.1]} 50... Bd7 {[%clk 0:00:03.3]} 51. a5 {[%clk 0:00:09.2]}
51... Rh2+ {[%clk 0:00:03.3]} 52. Kg3 {[%clk 0:00:09.4]} 52... Rh1 {[%clk
0:00:02.9]} 53. a6 {[%clk 0:00:08.1]} 53... Ra1 {[%clk 0:00:01.6]} 54. Bc4
{[%clk 0:00:08.6]} 54... Kd6 {[%clk 0:00:01.1]} 55. Rg7 {[%clk 0:00:08.2]} 55...
Kc7 {[%clk 0:00:01.8]} 56. Be6 {[%clk 0:00:07.6]} 56... Kb6 {[%clk 0:00:02.5]}
57. Rxd7 {[%clk 0:00:07.7]} 57... Rxa6 {[%clk 0:00:03.4]} 58. Bb3 {[%clk
0:00:07.7]} 58... Ra1 {[%clk 0:00:03.8]} 59. Rd6 {[%clk 0:00:08.1]} 59... Rg1+
{[%clk 0:00:04.2]} 60. Kf2 {[%clk 0:00:08.2]} 60... Rh1 {[%clk 0:00:04.8]} 61.
Bd5 {[%clk 0:00:08]} 61... Kc5 {[%clk 0:00:05.4]} 62. Rxc6+ {[%clk 0:00:08.4]}
62... Kb5 {[%clk 0:00:06.3]} 63. Rc4 {[%clk 0:00:08.8]} 63... Rh2+ {[%clk
0:00:06.4]} 64. Ke1 {[%clk 0:00:09.2]} 64... b3 {[%clk 0:00:05]} 65. cxb3 {[%clk
0:00:09.1]} 65... Rxb2 {[%clk 0:00:05.9]} 66. Rxd4 {[%clk 0:00:09.4]} 66... Kc5
{[%clk 0:00:05.5]} 67. Rc4+ {[%clk 0:00:09.8]} 67... Kd6 {[%clk 0:00:06.4]} 68.
b4 {[%clk 0:00:09]} 68... Ke5 {[%clk 0:00:06.4]} 69. Kd1 {[%clk 0:00:08.8]}
69... Rb1+ {[%clk 0:00:07.3]} 70. Kc2 {[%clk 0:00:09.2]} 70... Rg1 {[%clk
0:00:07.9]} 71. Rc5 {[%clk 0:00:09.6]} 71... Rg7 {[%clk 0:00:08.3]} 72. Bc4+
{[%clk 0:00:10]} 72... Kd4 {[%clk 0:00:09.2]} 73. Rd5+ {[%clk 0:00:10.6]} 73...
Ke3 {[%clk 0:00:09.9]} 74. b5 {[%clk 0:00:11.3]} 74... Rg2+ {[%clk 0:00:10.2]}
75. Kc3 {[%clk 0:00:11.4]} 75... Rg6 {[%clk 0:00:10.2]} 76. b6 {[%clk 0:00:12]}
76... Rxb6 {[%clk 0:00:10.1]} 77. Rb5 {[%clk 0:00:12.6]} 77... Rc6 {[%clk
0:00:10.1]} 78. Rb1 {[%clk 0:00:13]} 78... Kf4 {[%clk 0:00:09.7]} 79. Re1 {[%clk
0:00:13.1]} 79... Ke5 {[%clk 0:00:10]} 80. d4+ {[%clk 0:00:13.6]} 80... Kf6
{[%clk 0:00:10]} 81. d5 {[%clk 0:00:14.2]} 81... Ke7 {[%clk 0:00:10.9]} 82. dxc6
{[%clk 0:00:14.1]} 1-0